fUST/lending_fUST_20250908
["ID","MTS","AMOUNT","RATE_DAILY","PERIOD"]
[384295602,1757323841313,-582.16,0.00013698,2]
[384295603,1757323841322,-480.0,0.00013698,2]
[384295604,1757323841332,-480.0,0.00013698,2]
[384295605,1757323841341,-526.11560716,0.00013698,2]
[384295606,1757323841351,-481.77219081,0.00013698,2]
[384295607,1757323841360,-483.69683165,0.00013698,2]
[384295608,1757323841370,-480.0,0.00013698,2]
[384295609,1757323841379,-480.0,0.00013698,2]
[384295610,1757323841389,-480.0,0.00013698,2]
[384295611,1757323841399,-480.0,0.00013698,2]
[384295612,1757323841408,-252.0223145,0.00013698,2]
[384295613,1757323841417,-480.0,0.00013698,2]
[384295614,1757323841426,-480.0,0.00013698,2]
[384295615,1757323841435,-480.0,0.00013698,2]
[384295616,1757323841445,-480.0,0.00013698,2]
[384295617,1757323841455,-480.0,0.00013698,2]
[384295618,1757323841464,-480.0,0.00013698,2]
[384295619,1757323841474,-480.0,0.00013698,2]
[384295620,1757323841483,-480.0,0.00013698,2]
[384295621,1757323841493,-2216.04,0.00013698,2]
[384295622,1757323841502,-480.0,0.00013698,2]
[384295623,1757323841511,-480.0,0.00013698,2]
[384295624,1757323841521,-480.0,0.00013698,2]
[384295625,1757323841531,-480.0,0.00013698,2]
[384295626,1757323841540,-480.0,0.00013698,2]
[384295627,1757323841549,-480.0,0.00013698,2]
[384295628,1757323841559,-480.0,0.00013698,2]
[384295629,1757323841568,-480.0,0.00013698,2]
[384295630,1757323841578,-480.0,0.00013698,2]
[384295631,1757323841587,-480.0,0.00013698,2]
[384295632,1757323841596,-480.0,0.00013698,2]
[384295633,1757323841605,-480.0,0.00013698,2]
[384295634,1757323841615,-480.0,0.00013698,2]
[384295635,1757323841624,-480.0,0.00013698,2]
[384295636,1757323841634,-964.98,0.00013698,2]
[384295637,1757323841644,-378.833601,0.00013699,2]
[384295638,1757323841653,-500.0,0.00013699,2]
[384295639,1757323841663,-300.0,0.00013943,2]
[384295640,1757323841673,-300.0,0.00013943,2]
[384295641,1757323841683,-300.0,0.00013943,2]
[384295642,1757323841692,-300.0,0.00013943,2]
[384295643,1757323841702,-300.0,0.00013943,2]
[384295644,1757323841712,-300.0,0.00013943,2]
[384295645,1757323841721,-300.0,0.00013943,2]
[384295646,1757323841731,-300.0,0.00013943,2]
[384295647,1757323841741,-300.0,0.00013943,2]
[384295648,1757323841751,-300.0,0.00013943,2]
[384295649,1757323841761,-300.0,0.00013943,2]
[384295650,1757323841771,-300.0,0.00013943,2]
[384295651,1757323841780,-300.0,0.00013943,2]
[384295652,1757323841790,-300.0,0.00013943,2]
[384295653,1757323841800,-300.0,0.00013943,2]
[384295654,1757323841809,-600.0,0.00013943,2]
[384295655,1757323841819,-10576.6745308,0.00013966,2]
[384295656,1757323841829,-480.0,0.00013972,2]
[384295657,1757323841838,-480.0,0.00013972,2]
[384295658,1757323841847,-495.93,0.00013972,2]
[384295659,1757323841857,-480.0,0.00013972,2]
[384295660,1757323841867,-480.0,0.00013972,2]
[384295661,1757323841983,-480.0,0.00013972,2]
[384295662,1757323841993,-480.0,0.00013972,2]
[384295663,1757323842002,-480.0,0.00013972,2]
[384295664,1757323842012,-552.89720791,0.00013972,2]
[384295665,1757323842023,-480.0,0.00013972,2]
[384295666,1757323842033,-480.0,0.00013972,2]
[384295667,1757323842043,-486.15204353,0.00013972,2]
[384295668,1757323842053,-480.0,0.00013972,2]
[384295669,1757323842064,-480.0,0.00013972,2]
[384295670,1757323842074,-480.0,0.00013972,2]
[384295671,1757323842084,-480.0,0.00013972,2]
[384295672,1757323842094,-480.0,0.00013972,2]
[384295673,1757323842103,-258.80036864,0.00013972,2]
[384295674,1757323842112,-480.0,0.00013972,2]
[384295675,1757323842122,-480.0,0.00013972,2]
[384295676,1757323842132,-480.0,0.00013972,2]
[384295677,1757323842142,-486.55871752,0.00013972,2]
[384295678,1757323842152,-480.0,0.00013972,2]
[384295679,1757323842163,-480.0,0.00013972,2]
[384295680,1757323842173,-480.0,0.00013972,2]
[384295681,1757323842183,-480.0,0.00013972,2]
[384295682,1757323842192,-480.0,0.00013972,2]
[384295683,1757323842201,-480.0,0.00013972,2]
[384295684,1757323842211,-480.0,0.00013972,2]
[384295685,1757323842220,-480.0,0.00013972,2]
[384295686,1757323842230,-480.0,0.00013972,2]
[384295687,1757323842239,-480.0,0.00013972,2]
[384295688,1757323842248,-480.0,0.00013972,2]
[384295689,1757323842259,-482.64239556,0.00013972,2]
[384295690,1757323842268,-480.0,0.00013972,2]
[384295691,1757323842277,-480.0,0.00013972,2]
[384295692,1757323842286,-480.0,0.00013972,2]
[384295693,1757323842295,-480.0,0.00013972,2]
[384295694,1757323842305,-480.0,0.00013972,2]
[384295695,1757323842315,-480.0,0.00013972,2]
[384295696,1757323842324,-294.65739973,0.00013972,2]
[384295697,1757323842334,-480.0,0.00013972,2]
[384295698,1757323842346,-480.0,0.00013972,2]
[384295699,1757323842355,-480.0,0.00013972,2]
[384295700,1757323842364,-480.0,0.00013972,2]
[384295701,1757323842374,-480.0,0.00013972,2]
[384295702,1757323842383,-480.0,0.00013972,2]
[384295703,1757323842392,-336.07683909,0.00013972,2]
[384295704,1757323842402,-416.04,0.00013972,2]
[384295705,1757323842411,-480.0,0.00013972,2]
[384295706,1757323842420,-480.0,0.00013972,2]
[384295707,1757323842430,-480.0,0.00013972,2]
[384295708,1757323842439,-480.0,0.00013972,2]
[384295709,1757323842448,-480.0,0.00013972,2]
[384295710,1757323842458,-480.0,0.00013972,2]
[384295711,1757323842467,-574.18,0.00013972,2]
[384295712,1757323842476,-395.79827353,0.00013972,2]
[384295713,1757323842485,-480.0,0.00013972,2]
[384295714,1757323842494,-480.0,0.00013972,2]
[384295715,1757323842504,-480.0,0.00013972,2]
[384295716,1757323842513,-480.0,0.00013972,2]
[384295717,1757323842522,-480.0,0.00013972,2]
[384295718,1757323842531,-480.0,0.00013972,2]
[384295719,1757323842541,-480.0,0.00013972,2]
[384295720,1757323842551,-480.0,0.00013972,2]
[384295721,1757323842561,-480.0,0.00013972,2]
[384295722,1757323842571,-480.0,0.00013972,2]
[384295723,1757323842582,-480.0,0.00013972,2]
[384295724,1757323842591,-480.0,0.00013972,2]
[384295725,1757323842600,-480.0,0.00013972,2]
[384295726,1757323842610,-480.0,0.00013972,2]
[384295727,1757323842619,-480.0,0.00013972,2]
[384295728,1757323842629,-480.0,0.00013972,2]
[384295729,1757323842638,-480.0,0.00013972,2]
[384295730,1757323842647,-480.0,0.00013972,2]
[384295731,1757323842657,-480.0,0.00013972,2]
[384295732,1757323842666,-480.0,0.00013972,2]
[384295733,1757323842676,-480.0,0.00013972,2]
[384295734,1757323842685,-480.0,0.00013972,2]
[384295735,1757323842694,-480.0,0.00013972,2]
[384295736,1757323842704,-480.0,0.00013972,2]
[384295737,1757323842713,-480.0,0.00013972,2]
[384295738,1757323842723,-480.0,0.00013972,2]
[384295739,1757323842732,-480.0,0.00013972,2]
[384295740,1757323842741,-480.0,0.00013972,2]
[384295741,1757323842750,-480.0,0.00013972,2]
[384295742,1757323842760,-480.0,0.00013972,2]
[384295743,1757323842769,-480.0,0.00013972,2]
[384295744,1757323842779,-480.0,0.00013972,2]
[384295745,1757323842788,-480.0,0.00013972,2]
[384295746,1757323842797,-342.86838726,0.00013972,2]
[384295747,1757323842806,-480.0,0.00013972,2]
[384295748,1757323842815,-480.0,0.00013972,2]
[384295749,1757323842825,-480.0,0.00013972,2]
[384295750,1757323842834,-480.0,0.00013972,2]
[384295751,1757323842843,-480.0,0.00013972,2]
[384295752,1757323842852,-480.0,0.00013972,2]
[384295753,1757323842862,-218.79641822,0.00013972,2]
[384295754,1757323842875,-480.0,0.00013972,2]
[384295755,1757323842886,-480.0,0.00013972,2]
[384295756,1757323842896,-480.0,0.00013972,2]
[384295757,1757323842905,-480.0,0.00013972,2]
[384295758,1757323842915,-480.0,0.00013972,2]
[384295759,1757323842924,-480.0,0.00013972,2]
[384295760,1757323842933,-480.0,0.00013972,2]
[384295761,1757323842943,-480.0,0.00013972,2]
[384295762,1757323842954,-797.49,0.00013972,2]
[384295763,1757323842964,-480.0,0.00013972,2]
[384295764,1757323842973,-480.0,0.00013972,2]
[384295765,1757323842983,-933.94,0.00013972,2]
[384295766,1757323842992,-480.0,0.00013972,2]
[384295767,1757323843002,-480.0,0.00013972,2]
[384295768,1757323843011,-508.84,0.00013972,2]
[384295769,1757323843020,-480.0,0.00013972,2]
[384295770,1757323843029,-480.0,0.00013972,2]
[384295771,1757323843039,-480.0,0.00013972,2]
[384295772,1757323843048,-480.0,0.00013972,2]
[384295773,1757323843057,-480.0,0.00013972,2]
[384295774,1757323843067,-480.0,0.00013972,2]
[384295776,1757323843076,-480.0,0.00013972,2]
[384295777,1757323843085,-480.0,0.00013972,2]
[384295778,1757323843095,-528.1961463,0.00013972,2]
[384295781,1757323843105,-480.0,0.00013972,2]
[384295782,1757323843114,-585.17229804,0.00013972,2]
[384295784,1757323843124,-480.0,0.00013972,2]
[384295786,1757323843134,-650.26,0.00013972,2]
[384295789,1757323843144,-611.98,0.00013972,2]
[384295790,1757323843153,-480.0,0.00013972,2]
[384295792,1757323843163,-608.38,0.00013972,2]
[384295794,1757323843172,-480.0,0.00013972,2]
[384295796,1757323843182,-480.0,0.00013972,2]
[384295798,1757323843191,-480.0,0.00013972,2]
[384295800,1757323843201,-480.0,0.00013972,2]
[384295802,1757323843209,-480.0,0.00013972,2]
[384295804,1757323843219,-480.0,0.00013972,2]
[384295806,1757323843228,-480.0,0.00013972,2]
[384295808,1757323843238,-480.0,0.00013972,2]
[384295811,1757323843247,-2768.0,0.00013972,2]
[384295812,1757323843256,-480.0,0.00013972,2]
[384295813,1757323843266,-480.0,0.00013972,2]
[384295814,1757323843275,-480.0,0.00013972,2]
[384295815,1757323843284,-480.0,0.00013972,2]
[384295816,1757323843293,-480.0,0.00013972,2]
[384295817,1757323843303,-343.98072104,0.00013972,2]
[384295818,1757323843312,-483.10078319,0.00013972,2]
[384295819,1757323843322,-480.0,0.00013972,2]
[384295820,1757323843331,-510.35495562,0.00013972,2]
[384295821,1757323843340,-480.0,0.00013972,2]
[384295822,1757323843349,-267.58050914,0.00013972,2]
[384295823,1757323843359,-480.0,0.00013972,2]
[384295824,1757323843368,-480.0,0.00013972,2]
[384295825,1757323843377,-480.0,0.00013972,2]
[384295826,1757323843387,-480.0,0.00013972,2]
[384295827,1757323843396,-480.0,0.00013972,2]
[384295828,1757323843405,-480.0,0.00013972,2]
[384295829,1757323843415,-480.0,0.00013972,2]
[384295830,1757323843424,-480.0,0.00013972,2]
[384295831,1757323843434,-480.0,0.00013972,2]
[384295832,1757323843444,-480.0,0.00013972,2]
[384295833,1757323843454,-480.0,0.00013972,2]
[384295834,1757323843463,-480.0,0.00013972,2]
[384295835,1757323843473,-480.0,0.00013972,2]
[384295836,1757323843482,-624.58,0.00013972,2]
[384295837,1757323843491,-480.0,0.00013972,2]
[384295838,1757323843500,-1126.14,0.00013972,2]
[384295839,1757323843510,-497.25,0.00013972,2]
[384295840,1757323843519,-480.0,0.00013972,2]
[384295841,1757323843528,-480.0,0.00013972,2]
[384295842,1757323843538,-480.0,0.00013972,2]
[384295844,1757323843547,-480.0,0.00013972,2]
[384295847,1757323843557,-345.5243182,0.00013972,2]
[384295848,1757323843566,-480.0,0.00013972,2]
[384295851,1757323843575,-480.0,0.00013972,2]
[384295852,1757323843585,-582.16,0.00013972,2]
[384295855,1757323843595,-480.0,0.00013972,2]
[384295858,1757323843604,-480.0,0.00013972,2]
[384295861,1757323843614,-480.0,0.00013972,2]
[384295864,1757323843623,-480.0,0.00013972,2]
[384295865,1757323843633,-480.0,0.00013972,2]
[384295866,1757323843642,-480.0,0.00013972,2]
[384295867,1757323843652,-480.0,0.00013972,2]
[384295868,1757323843661,-480.0,0.00013972,2]
[384295869,1757323843671,-480.0,0.00013972,2]
[384295870,1757323843680,-2216.04,0.00013972,2]
[384295871,1757323843689,-480.0,0.00013972,2]
[384295872,1757323843698,-151.0,0.00013972,2]
[384295873,1757323843708,-480.0,0.00013972,2]
[384295874,1757323843717,-480.0,0.00013972,2]
[384295875,1757323843726,-480.0,0.00013972,2]
[384295876,1757323843736,-480.0,0.00013972,2]
[384295877,1757323843745,-151.0,0.00013972,2]
[384295878,1757323843755,-151.0,0.00013972,2]
[384295879,1757323843764,-480.0,0.00013972,2]
[384295880,1757323843774,-151.0,0.00013972,2]
[384295881,1757323843783,-163.5909,0.00013972,2]
[384295882,1757323843792,-163.5909,0.00013972,2]
[384295883,1757323843802,-480.0,0.00013972,2]
[384295884,1757323843811,-151.0,0.00013972,2]
[384295885,1757323843820,-480.0,0.00013972,2]
[384295886,1757323843830,-163.5909,0.00013972,2]
[384295887,1757323843839,-480.0,0.00013972,2]
[384295888,1757323843848,-480.0,0.00013972,2]
[384295889,1757323843857,-163.5909,0.00013972,2]
[384295890,1757323843867,-480.0,0.00013972,2]
[384295891,1757323843879,-480.0,0.00013972,2]
[384295892,1757323843888,-964.98,0.00013972,2]
[384295893,1757323843897,-500.0,0.00013973,2]
[384295894,1757323843907,-500.0,0.00013973,2]
[384295895,1757323843917,-500.0,0.00013973,2]
[384295896,1757323843927,-500.0,0.00013973,2]
[384295897,1757323843936,-160.02831354,0.00013973,2]
[384295898,1757323843946,-500.67600698,0.00013973,2]
[384295899,1757323843956,-500.0,0.00013973,2]
[384295900,1757323843966,-500.0,0.00013973,2]
[384295901,1757323843975,-500.0,0.00013973,2]
[384295902,1757323843985,-500.0,0.00013973,2]
[384295903,1757323843996,-500.0,0.00013973,2]
[384295904,1757323844006,-454.32360974,0.00013973,2]
[384295905,1757323844015,-500.0,0.00013973,2]
[384295906,1757323844024,-500.0,0.00013973,2]
[384295907,1757323844034,-500.0,0.00013973,2]
[384295908,1757323844044,-200.63521851,0.00013973,2]
[384295909,1757323844054,-162.497089,0.00013973,2]
[384295910,1757323844063,-204.176812,0.00013973,2]
[384295911,1757323844073,-151.0,0.00013973,2]
[384295912,1757323844081,-151.0,0.00013973,2]
[384295913,1757323844091,-38880.03912604,0.0001399,2]
[384295914,1757323844206,-41419.50256458,0.0001399,2]
[384295915,1757323844222,-1011.7194644,0.0001399,2]
[384295916,1757323844514,-480.0,0.00013698,2]
[384295917,1757323844523,-3836.0,0.0001399,2]
[384295918,1757323844535,-10044.12897126,0.0001399,2]
[384295919,1757323844614,-4808.60987372,0.0001399,2]
[384295920,1757323844624,-151.0,0.0001399,2]
[384295921,1757323844633,-151.0,0.0001399,2]
[384295922,1757323844643,-65.83759482,0.0001399,2]
[384295923,1757323844655,-85.16240518,0.0001399,2]
[384295924,1757323844664,-151.0,0.0001399,2]
[384295925,1757323844673,-151.0,0.0001399,2]
[384295926,1757323844683,-151.0,0.0001399,2]
[384295927,1757323844692,-151.0,0.0001399,2]
[384295928,1757323844702,-122.53681886,0.0001399,2]
[384295929,1757323844714,-28.46318114,0.0001399,2]
[384295930,1757323844723,-151.0,0.0001399,2]
[384295931,1757323844734,-151.0,0.0001399,2]
[384295932,1757323844747,-84.61113779,0.0001399,2]
[384295937,1757323848025,-93.43064221,0.0001399,2]
[384295938,1757323848035,-151.0,0.0001399,2]
[384295939,1757323848044,-151.0,0.0001399,2]
[384295940,1757323848053,-151.0,0.0001399,2]
[384295941,1757323848061,-151.0,0.0001399,2]
[384295942,1757323848069,-151.0,0.0001399,2]
[384295943,1757323848078,-151.0,0.0001399,2]
[384295944,1757323848086,-151.0,0.0001399,2]
[384295945,1757323848096,-151.0,0.0001399,2]
[384295946,1757323848105,-151.0,0.0001399,2]
[384295947,1757323848115,-151.0,0.0001399,2]
[384295948,1757323848124,-151.0,0.0001399,2]
[384295949,1757323848135,-151.0,0.0001399,2]
[384295950,1757323848144,-151.0,0.0001399,2]
[384295951,1757323848154,-151.0,0.0001399,2]
[384295952,1757323848164,-151.0,0.0001399,2]
[384295953,1757323848174,-151.0,0.0001399,2]
[384295954,1757323848183,-151.0,0.0001399,2]
[384295955,1757323848192,-173.404037,0.0001399,2]
[384295956,1757323848202,-151.0,0.0001399,2]
[384295957,1757323848211,-151.0,0.0001399,2]
[384295958,1757323848220,-151.0,0.0001399,2]
[384295959,1757323848230,-151.0,0.0001399,2]
[384295960,1757323848239,-151.0,0.0001399,2]
[384295961,1757323848249,-151.0,0.0001399,2]
[384295962,1757323848257,-151.0,0.0001399,2]
[384295963,1757323848267,-151.0,0.0001399,2]
[384295964,1757323848276,-151.0,0.0001399,2]
[384295965,1757323848285,-151.0,0.0001399,2]
[384295966,1757323848294,-151.0,0.0001399,2]
[384295967,1757323848305,-151.0,0.0001399,2]
[384295968,1757323848314,-151.0,0.0001399,2]
[384295969,1757323848323,-151.0,0.0001399,2]
[384295970,1757323848333,-151.0,0.0001399,2]
[384295971,1757323848342,-151.0,0.0001399,2]
[384295972,1757323848351,-151.0,0.00014176,2]
[384295973,1757323848360,-151.0,0.00014176,2]
[384295974,1757323848372,-203.26219058,0.00014179,2]
[384295975,1757323848381,-233.03190505,0.00014179,2]
[384295976,1757323848391,-846.71598105,0.00014179,2]
[384295977,1757323848400,-160.0,0.00014179,2]
[384295978,1757323848410,-217.62647793,0.00014179,2]
[384295979,1757323848419,-530.71506861,0.00014179,2]
[384295980,1757323848428,-160.0,0.00014179,2]
[384295981,1757323848437,-166.298799,0.00014245,2]
[384295982,1757323848447,-151.0,0.00014245,2]
[384295983,1757323848455,-480.0,0.00014246,2]
[384295984,1757323848465,-240.56987901,0.00014246,2]
[384295985,1757323848475,-480.0,0.00014246,2]
[384295986,1757323848484,-480.0,0.00014246,2]
[384295987,1757323848493,-220.82683493,0.00014246,2]
[384295988,1757323848505,-97.41316507,0.00014246,2]
[384295989,1757323848514,-480.0,0.00014246,2]
[384295990,1757323848524,-480.0,0.00014246,2]
[384295991,1757323848533,-480.0,0.00014246,2]
[384295992,1757323848542,-481.79063773,0.00014246,2]
[384295993,1757323848551,-480.0,0.00014246,2]
[384295994,1757323848560,-480.0,0.00014246,2]
[384295995,1757323848570,-484.05013618,0.00014246,2]
[384295996,1757323848673,-482.20014706,0.00014246,2]
[384295997,1757323848686,-480.0,0.00014246,2]
[384295998,1757323848696,-138.64800934,0.00014246,2]
[384295999,1757323848707,-341.35199066,0.00014246,2]
[384296000,1757323848716,-480.0,0.00014246,2]
[384296001,1757323848726,-477.0105559,0.00014246,2]
[384296002,1757323848736,-480.0,0.00014246,2]
[384296003,1757323848745,-312.08745345,0.00014246,2]
[384296004,1757323848763,-480.0,0.00013698,2]
[384296005,1757323848772,-169.49638774,0.00014246,2]
[384296006,1757323848782,-480.0,0.00014246,2]
[384296007,1757323848792,-480.0,0.00014246,2]
[384296008,1757323848804,-480.0,0.00014246,2]
[384296009,1757323848814,-480.0,0.00014246,2]
[384296010,1757323848825,-480.0,0.00014246,2]
[384296011,1757323848836,-240.47,0.00014246,2]
[384296012,1757323848848,-480.0,0.00014246,2]
[384296013,1757323848859,-312.93913249,0.00014246,2]
[384296014,1757323848871,-343.67693632,0.00014246,2]
[384296015,1757323848888,-490.32980837,0.00014246,2]
[384296016,1757323848899,-480.0,0.00014246,2]
[384296017,1757323848913,-480.0,0.00014246,2]
[384296018,1757323848927,-537.44,0.00014246,2]
[384296019,1757323848939,-482.90242777,0.00014246,2]
[384296020,1757323848955,-71.03757223,0.00014246,2]
[384296021,1757323848967,-480.0,0.00014246,2]
[384296022,1757323848978,-480.0,0.00014246,2]
[384296023,1757323848990,-480.0,0.00014246,2]
[384296024,1757323849001,-480.0,0.00014246,2]
[384296025,1757323849012,-322.99557535,0.00014246,2]
[384296026,1757323849023,-480.0,0.00014246,2]
[384296027,1757323849033,-602.93,0.00014246,2]
[384296028,1757323849044,-480.0,0.00014246,2]
[384296029,1757323849055,-480.0,0.00014246,2]
[384296030,1757323849065,-797.49,0.00014246,2]
[384296031,1757323849076,-480.0,0.00014246,2]
[384296032,1757323849087,-933.94,0.00014246,2]
[384296033,1757323849096,-480.0,0.00014246,2]
[384296034,1757323849108,-508.84,0.00014246,2]
[384296035,1757323849118,-200.04,0.00014246,2]
[384296036,1757323849128,-480.0,0.00014246,2]
[384296037,1757323849144,-480.0,0.00014246,2]
[384296038,1757323849154,-480.0,0.00014246,2]
[384296039,1757323849164,-650.26,0.00014246,2]
[384296040,1757323849174,-611.98,0.00014246,2]
[384296041,1757323849185,-225.280553,0.00014246,2]
[384296042,1757323849195,-480.0,0.00014246,2]
[384296043,1757323849206,-480.0,0.00014246,2]
[384296044,1757323849216,-480.0,0.00014246,2]
[384296045,1757323849227,-480.0,0.00014246,2]
[384296046,1757323849237,-2012.71005903,0.00014246,2]
[384296047,1757323849251,-755.28994097,0.00014246,2]
[384296048,1757323849262,-480.0,0.00014246,2]
[384296049,1757323849272,-480.0,0.00014246,2]
[384296050,1757323849282,-480.0,0.00014246,2]
[384296051,1757323849292,-480.0,0.00014246,2]
[384296052,1757323849302,-480.0,0.00014246,2]
[384296053,1757323849312,-480.0,0.00014246,2]
[384296054,1757323849322,-151.0,0.00014246,2]
[384296055,1757323849331,-480.0,0.00014246,2]
[384296056,1757323849341,-480.0,0.00014246,2]
[384296057,1757323849350,-480.0,0.00014246,2]
[384296058,1757323849360,-480.0,0.00014246,2]
[384296059,1757323849369,-480.0,0.00014246,2]
[384296060,1757323849379,-1126.14,0.00014246,2]
[384296061,1757323849392,-497.25,0.00014246,2]
[384296062,1757323849401,-480.0,0.00014246,2]
[384296063,1757323849411,-480.0,0.00014246,2]
[384296064,1757323849422,-582.16,0.00014246,2]
[384296065,1757323849432,-480.0,0.00014246,2]
[384296066,1757323849442,-480.0,0.00014246,2]
[384296067,1757323849452,-480.0,0.00014246,2]
[384296068,1757323849462,-2216.04,0.00014246,2]
[384296069,1757323849471,-480.0,0.00014246,2]
[384296070,1757323849481,-480.0,0.00014246,2]
[384296071,1757323849490,-151.0,0.00014246,2]
[384296072,1757323849500,-151.0,0.00014246,2]
[384296073,1757323849510,-151.0,0.00014246,2]
[384296074,1757323849519,-163.5909,0.00014246,2]
[384296075,1757323849529,-163.5909,0.00014246,2]
[384296076,1757323849538,-480.0,0.00014246,2]
[384296077,1757323849547,-163.5909,0.00014246,2]
[384296078,1757323849557,-163.5909,0.00014246,2]
[384296079,1757323849567,-480.0,0.00014246,2]
[384296080,1757323849576,-264.56167061,0.00014246,2]
[384296081,1757323849588,-700.41832939,0.00014246,2]
[384296082,1757323849598,-190.0,0.00014465,2]
[384296083,1757323849607,-151.0,0.00014519,2]
[384296084,1757323849617,-151.0,0.00014519,2]
[384296085,1757323849627,-151.0,0.00014519,2]
[384296086,1757323849640,-480.0,0.0001452,2]
[384296087,1757323849649,-213.75,0.0001452,2]
[384296088,1757323849659,-480.0,0.0001452,2]
[384296089,1757323849669,-480.0,0.0001452,2]
[384296090,1757323849679,-175.67934063,0.0001452,2]
[384296091,1757323849688,-480.0,0.0001452,2]
[384296092,1757323849698,-480.0,0.0001452,2]
[384296093,1757323849707,-797.49,0.0001452,2]
[384296094,1757323849718,-480.0,0.0001452,2]
[384296095,1757323849727,-933.94,0.0001452,2]
[384296096,1757323849737,-508.84,0.0001452,2]
[384296097,1757323849746,-480.0,0.0001452,2]
[384296098,1757323849757,-480.0,0.0001452,2]
[384296099,1757323849767,-480.0,0.0001452,2]
[384296100,1757323849776,-650.26,0.0001452,2]
[384296101,1757323849785,-611.98,0.0001452,2]
[384296102,1757323849794,-480.0,0.0001452,2]
[384296103,1757323849804,-480.0,0.0001452,2]
[384296104,1757323849813,-172.9,0.0001452,2]
[384296105,1757323849822,-2768.0,0.0001452,2]
[384296106,1757323849832,-480.0,0.0001452,2]
[384296107,1757323849841,-335.35,0.0001452,2]
[384296108,1757323849851,-300.26,0.0001452,2]
[384296109,1757323849860,-480.0,0.0001452,2]
[384296110,1757323849871,-480.0,0.0001452,2]
[384296111,1757323849886,-480.0,0.0001452,2]
[384296112,1757323849896,-320.3,0.0001452,2]
[384296113,1757323849906,-1126.14,0.0001452,2]
[384296114,1757323849915,-497.25,0.0001452,2]
[384296115,1757323849925,-480.0,0.0001452,2]
[384296116,1757323849935,-480.0,0.0001452,2]
[384296117,1757323849946,-265.20468327,0.0001452,2]
[384296119,1757324042568,-562.62412877,0.00013236,2]
[384296120,1757324042600,-562.62412877,0.0001337,2]
[384296121,1757324042666,-7198.2315678,0.00013461,2]
[384296122,1757324047555,-300.0,0.0001346,2]
[384296123,1757324047585,-1453.64840834,0.00013461,2]
[384296124,1757324047634,-6492.71318332,0.00013461,2]
[384296128,1757324132579,-717.60010471,0.00013326,2]
[384296129,1757324132608,-717.60010471,0.00013461,2]
[384296130,1757324132638,-300.0,0.00013469,2]
[384296131,1757324132666,-231.0,0.00013469,2]
[384296132,1757324132694,-500.0,0.0001347,2]
[384296133,1757324132721,-180.15733185,0.0001347,2]
[384296134,1757324132749,-226.23359741,0.0001347,2]
[384296135,1757324132780,-500.0,0.0001347,2]
[384296136,1757324132809,-500.0,0.0001347,2]
[384296137,1757324132838,-500.0,0.0001347,2]
[384296138,1757324132868,-500.0,0.0001347,2]
[384296139,1757324133088,-254.82772264,0.0001347,2]
[384296140,1757324137579,-245.17227736,0.0001347,2]